bitfinex-derivatives/quotes_ETHF0:USTF0_20250316
["timestamp","ask_amount","ask_price","bid_price","bid_amount"]
[1742156153628,2.20821,1891.9,1891.5,0.00794197]
[1742156153629,0.84582,1891.6,1891.5,0.00794197]
[1742156154536,2.28999,1891.7,1891.5,0.85380197]
[1742156154731,1.4442,1891.7,1891.6,5.39992]
[1742156154931,1.4442,1891.7,1891.6,2.88512]
[1742156155843,1.4022,1892.0,1891.6,2.88512]
[1742156156138,2.28993,1891.8,1891.7,1.3463]
[1742156158140,1.4442,1891.8,1891.5,3.71594197]
[1742156158341,1.4159,1891.7,1891.5,1.72363463]
[1742156158533,0.84565,1892.0,1891.7,0.84575]
[1742156158738,1.4159,1891.9,1891.8,2.0381]
[1742156158940,1.4159,1891.9,1891.6,3.707]
[1742156159239,1.55706,1891.8,1891.6,5.0312]
[1742156159444,2.93738,1891.7,1891.6,1.3242]
[1742156159741,2.0916,1891.7,1891.6,1.3242]
[1742156160338,2.0916,1891.7,1891.6,2.17002]
[1742156160535,1.4159,1891.7,1891.6,2.17002]
[1742156160742,1.4159,1891.7,1891.6,1.3242]
[1742156161448,24.6250777,1894.0,1891.6,10.76867177]
[1742156161645,24.6250777,1894.0,1893.9,4.0526]
[1742156161646,12.38689725,1894.0,1893.9,4.0526]
[1742156161938,5.36048447,1894.0,1893.9,7.8476]
[1742156162242,5.36048447,1894.0,1893.9,10.3476]
[1742156162243,3.44794232,1894.0,1893.9,10.3476]
[1742156162431,8.73114232,1894.0,1893.9,3.2078]
[1742156162632,8.73114232,1894.0,1893.8,0.00791996]
[1742156162936,5.2832,1893.9,1893.8,3.21571996]
[1742156163238,6.6277,1893.9,1893.8,3.21571996]
[1742156163940,7.4725,1893.9,1893.8,3.91163838]
[1742156164137,0.84496,1893.6,1893.4,1.07512589]
[1742156164341,0.84496,1893.6,1893.0,3.861]
[1742156164342,1.3445,1893.5,1893.2,1.56508]
[1742156164538,1.3445,1893.5,1893.2,3.00008]
[1742156164740,4.20807411,1893.4,1893.2,1.435]
[1742156164942,1.3445,1893.3,1893.2,1.435]
[1742156165142,5.55257411,1893.3,1893.2,2.28011]
[1742156165340,3.2078,1893.7,1893.2,1.435]
[1742156165539,4.20807411,1893.6,1893.5,4.05275]
[1742156165844,0.00784657,1893.6,1893.5,0.84495]
[1742156166048,4.21592068,1893.6,1893.5,0.84495]
[1742156166343,7.42372068,1893.6,1893.4,1.3444]
[1742156166541,0.84504,1893.4,1893.2,0.72]
[1742156166735,1.4341,1893.3,1892.8,7.0678]
[1742156166940,5.64217411,1893.3,1893.0,0.84516]
[1742156167143,4.20807411,1893.2,1893.0,0.84518]
[1742156167443,1.4341,1893.1,1892.8,7.0678]
[1742156167640,5.64217411,1893.1,1892.9,0.56616479]
[1742156167846,4.20807411,1893.0,1892.8,7.07571996]
[1742156168045,1.4341,1892.9,1892.8,3.21571996]
[1742156168242,5.64217411,1892.9,1892.8,3.78175619]
[1742156168543,5.64217411,1892.9,1892.8,4.62704619]
[1742156169044,5.64217411,1892.9,1892.8,3.78175619]
[1742156169242,6.48741411,1892.9,1892.8,3.78175619]
[1742156169549,6.48741411,1892.9,1892.8,0.00791996]
[1742156175950,7.17381411,1892.9,1892.8,0.00791996]
[1742156176454,0.84535,1892.7,1892.3,3.8993]
[1742156176656,6.49616411,1892.6,1892.3,4.74479]
[1742156176858,2.28809,1892.6,1892.3,4.74479]
[1742156177149,4.20807411,1892.5,1892.4,0.68170551]
[1742156177353,5.65077411,1892.5,1892.4,0.68170551]
[1742156177855,5.65077411,1892.5,1892.3,1.54490996]
[1742156178053,4.20807411,1892.4,1892.3,0.69941996]
[1742156178256,5.54077411,1892.4,1892.3,0.00791996]
[1742156178446,5.54077411,1892.4,1892.3,0.85342996]
[1742156178646,5.54077411,1892.4,1892.3,1.41954979]
[1742156178851,5.54077411,1892.4,1892.3,0.57403979]
[1742156179054,5.54077411,1892.4,1892.3,0.69010652]
[1742156179348,6.38624411,1892.4,1892.3,0.69010652]
[1742156179543,0.84558,1892.2,1892.0,1.09058837]
[1742156179748,3.811,1892.5,1891.8,6.35448837]
[1742156179749,4.5405,1892.1,1891.8,6.35448837]
[1742156179949,5.38611,1892.1,1891.8,6.35448837]
[1742156180252,5.05373411,1892.0,1891.8,1.09058837]
[1742156180452,5.38619,1891.9,1891.8,1.09058837]
[1742156180646,0.84574,1891.8,1891.6,1.4529]
[1742156180855,1.3327,1891.7,1891.6,4.6607]
[1742156181051,5.54077411,1891.7,1891.5,0.40427962]
[1742156181250,4.20807411,1891.6,1891.5,2.59442962]
[1742156181450,5.67137411,1891.6,1891.5,3.16156374]
[1742156181650,4.20807411,1891.6,1891.5,3.16156374]
[1742156181845,4.5123,1892.2,1891.5,3.16156374]
[1742156181846,0.84566,1892.0,1891.5,4.81571374]
[1742156182051,1.4633,1892.0,1891.8,4.05352]
[1742156182357,4.20807411,1891.9,1891.8,4.05352]
[1742156182554,4.20807411,1891.9,1891.8,4.6205862]
[1742156182853,4.20807411,1891.9,1891.8,5.3063862]
[1742156183451,3.2078,1892.4,1892.3,0.84551]
[1742156183655,4.20807411,1892.4,1892.3,4.05331]
[1742156183857,4.20807411,1892.4,1892.0,3.806]
[1742156183858,4.20807411,1892.4,1892.2,0.84554]
[1742156184154,6.47860411,1892.3,1892.1,4.05337]
[1742156184357,2.27053,1892.3,1892.1,4.05337]
[1742156184554,4.20807411,1892.2,1892.1,4.05337]
[1742156184752,5.63307411,1892.2,1892.1,4.62060674]
[1742156184949,5.63307411,1892.2,1892.1,3.2078]
[1742156184950,6.47862411,1892.2,1892.1,3.2078]
[1742156185356,6.47862411,1892.2,1892.0,3.806]
[1742156185357,0.8456,1892.1,1892.0,3.806]
[1742156185554,6.47867411,1892.1,1891.9,1.41316714]
[1742156185757,5.05372411,1892.0,1891.8,5.34051]
[1742156186058,1.425,1891.9,1891.8,0.6858]
[1742156186363,5.63307411,1891.9,1891.8,2.09885066]
[1742156186557,5.63307411,1891.9,1891.8,1.2531411]
[1742156186857,5.63307411,1891.9,1891.8,2.0988711]
[1742156188665,5.63307411,1891.9,1891.8,1.25333959]
[1742156188958,6.47876411,1891.9,1891.6,4.6528]
[1742156189152,4.20807411,1891.8,1891.7,1.4134055]
[1742156189364,5.56437411,1891.8,1891.7,0.5676355]
[1742156189555,6.41010411,1891.8,1891.7,0.5676355]
[1742156190357,0.84581,1891.7,1891.5,4.74387996]
[1742156190555,1.4314,1891.6,1891.5,4.74387996]
[1742156190762,5.63947411,1891.6,1891.5,5.31184808]
[1742156190961,5.63947411,1891.6,1891.5,4.46598808]
[1742156192054,6.48529411,1891.6,1891.5,1.25818808]
[1742156192254,6.48529411,1891.6,1891.5,0.57588808]
[1742156192561,6.48529411,1891.6,1891.5,0.57679135]
[1742156193460,6.48529411,1891.6,1891.5,1.25808517]
[1742156194561,6.48529411,1891.6,1891.5,1.25868568]
[1742156197172,5.63947411,1891.6,1891.5,2.10455568]
[1742156197368,6.48529411,1891.6,1891.5,2.64448568]
[1742156198374,5.63947411,1891.6,1891.5,2.64448568]
[1742156198576,6.48529411,1891.6,1891.5,2.64448568]
[1742156201476,6.48529411,1891.6,1891.5,2.07501378]
[1742156201667,6.48529411,1891.6,1891.5,2.6454916]
[1742156202776,5.63947411,1891.6,1891.5,2.6454916]
[1742156202971,6.48529411,1891.6,1891.5,2.6454916]
[1742156204672,6.48529411,1891.6,1891.5,2.64591869]
[1742156206077,6.48529411,1891.6,1891.5,3.49178869]
[1742156206777,6.48529411,1891.6,1891.5,2.64591869]
[1742156206972,6.48529411,1891.6,1891.5,3.49178869]
[1742156207177,6.48529411,1891.6,1891.5,2.64591869]
[1742156207778,6.48529411,1891.6,1891.5,1.26011869]
[1742156210673,2.27722,1891.6,1891.5,1.26011869]
[1742156210980,6.48529411,1891.6,1891.5,1.26138061]
[1742156211973,13.96808411,1891.6,1891.1,1.3979]
[1742156212179,0.846,1891.2,1891.1,1.3979]
[1742156212479,0.846,1891.2,1891.1,1.73512056]
[1742156212678,5.05407411,1891.2,1891.1,2.82242239]
[1742156212874,5.05407411,1891.2,1891.1,2.48520183]
[1742156213271,5.05407411,1891.2,1891.1,1.08730183]
[1742156213473,0.84605,1891.1,1891.0,0.70501996]
[1742156213674,0.84605,1891.1,1890.6,3.2078]
[1742156213675,7.71487411,1891.1,1890.6,3.2078]
[1742156213883,0.84622,1890.8,1890.6,2.24415]
[1742156214381,0.84622,1890.8,1890.7,2.48546802]
[1742156214577,0.84622,1890.8,1890.7,1.08756802]
[1742156214780,0.84642,1890.3,1890.1,0.84646]
[1742156215076,5.05434411,1890.7,1890.2,3.2078]
[1742156215280,0.84629,1890.6,1890.4,0.84634]
[1742156215480,5.05436411,1890.6,1890.4,0.84634]
[1742156215682,4.20807411,1890.5,1890.4,0.84634]
[1742156215881,5.05439411,1890.5,1890.4,0.84634]
[1742156216274,5.05439411,1890.5,1890.4,0.84636]
[1742156216474,5.05439411,1890.5,1890.3,0.84638]
[1742156216674,5.05439411,1890.5,1890.4,1.3633]
[1742156217082,4.20807411,1890.5,1890.4,1.3633]
[1742156217282,5.05439411,1890.5,1890.4,1.3633]
[1742156217673,5.05439411,1890.5,1890.4,2.20966]
[1742156218182,5.05439411,1890.5,1890.4,1.3633]
[1742156219080,4.20807411,1890.5,1890.4,2.20966]
[1742156219585,5.05439411,1890.5,1890.4,1.3633]
[1742156220475,3.725,1891.2,1890.8,0.84618]
[1742156220684,0.84618,1890.8,1890.6,0.84625]
[1742156220984,5.05425411,1890.8,1890.7,1.3911]
[1742156221186,4.20807411,1890.8,1890.7,2.23733]
[1742156221481,5.05425411,1890.8,1890.7,2.23733]
[1742156221683,0.84623,1890.7,1890.6,0.84626]
[1742156221876,4.20807411,1890.7,1890.6,0.84626]
[1742156222182,4.20807411,1890.7,1890.6,4.05406]
[1742156223480,1.3687,1891.0,1890.7,0.84621]
[1742156223681,0.84614,1890.9,1890.7,0.84621]
[1742156224384,0.84614,1890.9,1890.7,2.19681]
[1742156224786,0.84618,1890.8,1890.7,2.19681]
[1742156225386,1.3687,1891.0,1890.7,2.1968]
[1742156225576,0.84616,1890.9,1890.7,2.1968]
[1742156225777,2.30366,1890.9,1890.7,2.1968]
[1742156226081,5.84004,1891.2,1890.7,2.1968]
[1742156226082,0.00791996,1891.3,1890.8,3.2078]
[1742156226288,0.00791996,1891.3,1891.2,0.846]
[1742156226883,0.00791996,1891.3,1891.2,2.2504]
[1742156227387,0.00791996,1891.3,1891.2,1.4044]
[1742156227588,0.00791996,1891.3,1891.2,2.2504]
[1742156227978,1.33071996,1891.3,1891.2,2.2504]
[1742156228688,1.33071996,1891.3,1891.2,5.4582]
[1742156228879,3.2078,1891.7,1891.5,0.84585]
[1742156229079,1.3228,1891.6,1891.5,0.84585]
[1742156230685,2.16863,1891.6,1891.4,0.84588]
[1742156231190,2.16863,1891.6,1891.3,1.52873]
[1742156231382,2.16863,1891.6,1891.3,0.6828]
[1742156231691,1.3228,1891.6,1891.1,4.42505333]
[1742156231884,0.84599,1891.3,1891.1,4.42505333]
[1742156232079,1.3246,1891.2,1891.1,5.27110333]
[1742156232387,1.3246,1891.2,1891.1,5.09452681]
[1742156232691,2.1706,1891.2,1891.1,5.09452681]
[1742156232890,1.3246,1891.2,1891.1,5.94057681]
[1742156233092,1.3246,1891.2,1891.1,5.27110333]
[1742156233995,1.3246,1891.2,1891.1,4.42505333]
[1742156234288,2.1706,1891.2,1891.1,4.42505333]
[1742156234485,2.1706,1891.2,1891.1,1.37677434]
[1742156234889,2.1706,1891.2,1891.1,0.67507434]
[1742156235083,2.1706,1891.2,1891.1,0.00535333]
[1742156235392,3.43969,1891.2,1890.6,3.8741]
[1742156235588,0.8462,1890.8,1890.6,4.72035]
[1742156235787,0.84616,1890.9,1890.7,0.84623]
[1742156236386,1.4013,1890.8,1890.7,0.84623]
[1742156236593,0.846,1891.2,1890.9,0.84612]
[1742156236789,1.4013,1891.2,1890.9,0.84612]
[1742156237291,1.4013,1891.2,1891.0,0.84607]
[1742156237488,1.4013,1891.2,1890.8,3.714]
[1742156237489,0.84605,1891.1,1890.9,1.57811]
[1742156237688,2.24732,1891.2,1891.0,0.84608]
[1742156237988,2.24732,1891.2,1891.0,0.7211]
[1742156238191,0.84605,1891.1,1891.0,0.7211]
[1742156238495,0.84605,1891.1,1890.9,0.732]
[1742156238496,2.24735,1891.1,1890.9,1.57813]
[1742156238790,2.24735,1891.1,1890.9,1.5781]
[1742156238791,1.4013,1891.1,1890.9,1.5781]
[1742156238993,2.24735,1891.1,1890.9,1.5781]
[1742156239191,0.84609,1891.0,1890.8,7.76795]
[1742156239389,1.3723,1890.9,1890.8,7.76795]
[1742156239591,1.3723,1890.9,1890.8,4.05395]
[1742156239793,1.3723,1890.9,1890.8,3.2078]
[1742156239990,1.3723,1890.9,1890.8,4.05398]
[1742156240294,1.3723,1890.9,1890.8,4.72482011]
[1742156240686,1.3723,1890.9,1890.8,3.87864011]
[1742156240886,1.3723,1890.9,1890.8,4.72482011]
[1742156241491,2.21844,1890.9,1890.8,3.87864011]
[1742156241699,3.61494,1890.9,1890.8,0.67084011]
[1742156241891,0.84623,1890.7,1890.6,0.00791996]
[1742156242093,2.7688,1890.9,1890.6,0.85416996]
[1742156242287,3.61496,1890.9,1890.6,0.85416996]
[1742156242488,1.3723,1890.9,1890.8,0.84618]
[1742156242798,1.3723,1890.9,1890.7,1.4206]
[1742156242991,1.3723,1890.9,1890.8,0.84618]
[1742156243300,2.21844,1890.9,1890.7,2.26681]
[1742156245999,2.28515,1891.1,1890.9,0.84611]
[1742156246199,1.4391,1891.1,1890.9,0.84611]
[1742156246402,1.4391,1891.1,1891.0,0.84609]
[1742156247701,2.28515,1891.1,1891.0,0.84609]
[1742156247903,1.4391,1891.1,1891.0,0.84609]
[1742156248098,2.28515,1891.1,1891.0,0.84609]
[1742156248299,1.4391,1891.1,1891.0,0.84609]
[1742156250004,1.4391,1891.1,1891.0,2.26249]
[1742156252099,0.84609,1891.0,1890.7,4.6284]
[1742156252304,1.4293,1890.9,1890.7,5.4746]
[1742156252504,1.4293,1890.9,1890.8,0.84618]
[1742156252699,1.4293,1890.9,1890.8,2.19098]
[1742156252905,2.27544,1890.9,1890.7,5.47459]
[1742156253105,2.27544,1890.9,1890.7,6.81939]
[1742156253303,2.27548,1890.8,1890.7,3.2078]
[1742156253805,2.27553,1890.7,1890.6,0.00791996]
[1742156254005,1.4293,1890.7,1890.6,0.85418996]
[1742156254205,1.4293,1890.7,1890.6,2.21358996]
[1742156254607,1.4293,1890.7,1890.6,2.88100325]
[1742156254802,2.27553,1890.7,1890.6,2.03473325]
[1742156255002,2.27553,1890.7,1890.6,0.67533325]
[1742156256002,2.27553,1890.7,1890.6,0.00791996]
[1742156257401,2.27553,1890.7,1890.6,0.67515695]
[1742156258504,2.27553,1890.7,1890.6,0.00791996]
[1742156260100,2.27553,1890.7,1890.6,0.6750238]
[1742156260500,1.4293,1890.7,1890.6,1.5212938]
[1742156260909,1.4293,1890.7,1890.6,4.3374938]
[1742156267102,2.27553,1890.7,1890.6,4.3374938]
[1742156267308,1.4293,1890.7,1890.6,4.3374938]
[1742156268202,2.27553,1890.7,1890.6,4.3374938]
[1742156268408,1.4293,1890.7,1890.6,4.3374938]
[1742156274911,2.27553,1890.7,1890.6,0.6750238]
[1742156275313,0.84636,1890.4,1890.2,2.17004]
[1742156275506,0.8464,1890.3,1890.2,1.3236]
[1742156276113,0.8464,1890.3,1890.2,2.17005]
[1742156276319,1.55709,1890.4,1890.2,2.17005]
[1742156276516,2.2445,1890.3,1890.2,1.3236]
[1742156277319,2.24454,1890.3,1890.1,5.07561733]
[1742156277510,1.3981,1890.2,1890.1,6.39921733]
[1742156278920,2.24455,1890.2,1890.1,3.2078]
[1742156279115,0.84658,1889.9,1889.8,3.2078]
[1742156279320,0.84657,1890.0,1889.8,4.05441]
[1742156279515,1.3812,1889.9,1889.8,5.45831]
[1742156279823,1.3812,1889.9,1889.8,4.05441]
[1742156280409,0.6835,1890.2,1890.1,0.84649]
[1742156280616,2.22763,1890.3,1890.2,0.84645]
[1742156280814,2.22763,1890.3,1890.1,1.52558]
[1742156281121,1.3812,1890.2,1890.1,2.20238]
[1742156281623,0.00791996,1890.4,1890.3,0.8464]
[1742156281821,0.00791996,1890.4,1890.3,4.0542]
[1742156283318,1.42681996,1890.4,1890.3,4.0542]
[1742156285125,0.00791996,1890.4,1890.3,4.0542]
[1742156285422,1.4093,1890.6,1890.5,0.84632]
[1742156286422,1.54245,1890.9,1890.7,0.84623]
[1742156286624,1.4093,1890.8,1890.7,0.84623]
[1742156287527,1.4093,1890.8,1890.7,1.50574115]
[1742156288222,2.25548,1890.8,1890.7,1.50574115]
[1742156288930,1.4093,1890.8,1890.7,1.50574115]
[1742156289119,2.25548,1890.8,1890.7,1.50574115]
[1742156289514,2.25548,1890.8,1890.7,0.65951115]
[1742156290330,5.46328,1890.8,1890.7,0.65951115]
[1742156291221,0.84632,1890.5,1890.4,0.00791996]
[1742156292231,2.86052,1890.5,1890.4,0.00791996]
[1742156292730,2.86052,1890.5,1890.0,0.6938]
[1742156292731,2.0142,1890.5,1890.0,0.6938]
[1742156292932,0.84649,1890.1,1890.0,0.6938]
[1742156293427,0.84648,1890.2,1890.0,0.6938]
[1742156293625,1.3645,1890.1,1890.0,1.54034]
[1742156293823,0.6874,1890.5,1890.0,3.9016]
[1742156294023,2.21089,1890.4,1890.2,0.84645]
[1742156294220,1.3645,1890.3,1890.1,0.84646]
[1742156294429,2.21091,1890.3,1890.1,0.84646]
[1742156294931,1.3645,1890.2,1890.1,0.84646]
[1742156295928,1.3645,1890.2,1890.1,2.31226]
[1742156296428,2.21095,1890.2,1890.1,1.4658]
[1742156296623,2.21095,1890.2,1890.0,3.9016]
[1742156296934,2.27169,1890.1,1890.0,3.2078]
[1742156297133,1.4252,1890.1,1890.0,4.5464]
[1742156297322,2.27169,1890.1,1890.0,4.5464]
[1742156297521,3.70099,1890.1,1890.0,3.2078]
[1742156298134,0.84663,1889.8,1889.7,3.2078]
[1742156298331,2.8545,1890.1,1889.7,4.05446]
[1742156298332,0.8466,1889.9,1889.7,4.05446]
[1742156298631,1.4252,1889.8,1889.7,5.39306]
[1742156298832,1.4252,1889.8,1889.7,5.75129683]
[1742156299235,0.00791996,1889.9,1889.8,0.84663]
[1742156299532,0.00791996,1889.9,1889.8,2.18523]
[1742156301340,0.00791996,1889.9,1889.8,1.3386]
[1742156301540,0.00791996,1889.9,1889.8,2.18523]
[1742156301943,0.84663,1889.8,1889.7,3.2078]
[1742156302133,2.29391996,1889.9,1889.7,5.51615]
[1742156302329,0.85451996,1889.9,1889.8,1.4617]
[1742156302535,0.84663,1889.8,1889.6,2.2129]
[1742156302735,0.84663,1889.8,1889.6,3.6746]
[1742156302934,0.84667,1889.7,1889.6,2.8279]
[1742156303140,0.84672,1889.6,1889.5,3.55409499]
[1742156303338,0.84672,1889.6,1889.5,4.6695]
[1742156303545,0.84672,1889.6,1889.5,0.65453568]
[1742156304234,0.84678,1889.5,1889.4,1.4617]
[1742156304434,1.4113,1889.7,1889.3,3.2078]
[1742156304642,0.84678,1889.5,1889.3,3.2078]
[1742156304941,0.84681,1889.4,1889.3,4.6695]
[1742156305648,0.8469,1889.3,1889.1,2.30162]
[1742156305837,0.8469,1889.3,1889.2,1.3411]
[1742156306235,0.8469,1889.2,1889.1,1.4547]
[1742156306550,0.84693,1889.2,1889.0,0.84699]
[1742156306847,0.84693,1889.2,1889.1,1.3411]
[1742156307541,5.3246,1889.6,1889.1,1.3411]
[1742156307542,0.8468,1889.5,1889.1,1.3411]
[1742156307747,0.84681,1889.4,1889.2,4.05466]
[1742156307940,0.84681,1889.4,1889.3,1.3411]
[1742156308143,0.84685,1889.3,1889.1,0.84692]
[1742156308448,0.8469,1889.2,1889.1,1.99512076]
[1742156308653,0.8469,1889.2,1889.1,0.65402076]
[1742156308846,0.84694,1889.1,1889.0,10.60219]
[1742156309144,0.84694,1889.1,1889.0,9.13879]
[1742156309344,0.84693,1889.2,1889.0,10.60217]
[1742156309536,0.84689,1889.3,1889.1,2.31034]
[1742156309741,5.32464,1889.6,1889.1,2.31034]
[1742156309742,0.8469,1889.2,1889.1,2.31034]
[1742156309944,6.9188,1889.6,1889.2,0.8469]
[1742156310139,0.84683,1889.4,1889.2,2.3103]
[1742156310345,0.84678,1889.5,1889.3,2.31024]
[1742156310852,0.84678,1889.5,1889.4,1.4634]
[1742156312249,2.258,1889.7,1889.5,0.84675]
[1742156312548,1.4113,1889.7,1889.6,0.84672]
[1742156312851,1.4113,1889.7,1889.6,2.27842]
[1742156313048,2.25797,1889.7,1889.6,1.4317]
[1742156313452,0.84672,1889.6,1889.5,1.3949]
[1742156313652,0.84672,1889.6,1889.5,2.8266]
[1742156313850,2.25801,1889.7,1889.5,3.67336]
[1742156314151,2.258,1889.7,1889.5,3.67336]
[1742156314350,2.258,1889.7,1889.6,1.4317]
[1742156314656,1.4113,1889.7,1889.4,6.9188]
[1742156314850,1.4113,1889.7,1889.3,5.50564]
[1742156315056,1.4113,1889.7,1889.3,1.451]
[1742156315057,0.84681,1889.4,1889.3,1.451]
[1742156315247,0.84681,1889.4,1889.3,0.84685]
[1742156315550,0.84681,1889.4,1889.3,2.29785]
[1742156315749,0.84681,1889.4,1889.3,1.451]
[1742156315957,0.84681,1889.4,1889.2,5.92687]
[1742156316253,1.3998,1889.3,1889.2,5.08]
[1742156316460,2.24665,1889.3,1889.2,6.531]
[1742156316659,2.24665,1889.3,1889.2,7.3779]
[1742156316956,2.24665,1889.3,1889.2,9.7388]
[1742156317157,1.3998,1889.3,1889.2,10.5857]
[1742156317349,1.3998,1889.3,1889.2,3.6669]
[1742156317949,2.24665,1889.3,1889.2,2.82]
[1742156318354,1.3998,1889.3,1889.0,3.86115011]
[1742156318548,2.27973,1889.2,1889.0,5.96715011]
[1742156318748,0.84693,1889.2,1889.1,1.3754]
[1742156320047,0.84685,1889.4,1889.1,2.22231]
[1742156320255,0.84685,1889.3,1889.2,1.3754]
[1742156320454,3.2078,1889.6,1889.2,1.3754]
[1742156320652,0.84685,1889.3,1889.2,1.3754]
[1742156322256,0.84685,1889.4,1889.2,2.2223]
[1742156322457,0.84685,1889.3,1889.2,1.3754]
[1742156323960,0.84693,1889.2,1889.0,4.78538]
[1742156324158,0.84693,1889.2,1889.0,6.16516]
[1742156324460,0.84693,1889.2,1889.0,4.78536]
[1742156324752,0.84693,1889.2,1889.0,6.16516]
[1742156324948,0.84694,1889.1,1889.0,3.2078]
[1742156325149,0.84699,1889.0,1888.9,0.6674]
[1742156325346,0.84699,1889.0,1888.9,1.3215536]
[1742156325957,0.84699,1889.0,1888.9,0.6541536]
[1742156328560,4.05479,1889.0,1888.9,0.6541536]
[1742156328867,0.84699,1889.0,1888.9,0.6541536]
[1742156329064,0.84708,1888.8,1888.7,2.7813536]
[1742156329955,0.84708,1888.8,1888.7,0.6541536]
[1742156330155,1.55708,1888.8,1888.7,0.6541536]
[1742156330669,0.84712,1888.7,1888.6,3.2078]
[1742156330859,0.69904155,1888.9,1888.6,4.5823]
[1742156331059,0.85497155,1888.9,1888.7,2.9245]
[1742156331260,0.85497155,1888.9,1888.8,2.0625]
[1742156332069,0.00794155,1888.9,1888.8,2.90958]
[1742156332960,0.00794155,1888.9,1888.8,6.11738]
[1742156333561,0.00794155,1888.9,1888.8,6.77258747]
[1742156333968,1.55687,1889.3,1889.1,0.84691]
[1742156334163,1.55687,1889.3,1889.2,1.3244]
[1742156335369,0.8469,1889.2,1889.1,0.00794155]
[1742156335970,0.8469,1889.2,1889.1,0.66306677]
[1742156336169,2.2071,1889.2,1889.1,1.98746677]
[1742156336870,2.2071,1889.2,1889.1,0.66306677]
[1742156337069,2.2071,1889.2,1889.1,0.00794155]
[1742156338161,2.2071,1889.2,1889.1,1.33234155]
[1742156341566,1.3602,1889.2,1889.1,2.17928155]
[1742156342063,2.2071,1889.2,1889.1,0.66328063]
[1742156342671,2.2071,1889.2,1889.1,0.00794155]
[1742156344064,1.3602,1889.2,1889.1,0.00794155]
[1742156344265,2.2071,1889.2,1889.1,1.34504155]
[1742156344566,1.3602,1889.2,1889.1,2.19198155]
[1742156345066,1.3602,1889.2,1889.1,2.84758435]
[1742156349172,0.00794155,1889.4,1889.1,2.00064435]
[1742156349375,1.3466,1889.3,1889.2,2.93847]
[1742156349776,1.3466,1889.3,1889.2,3.5940728]
[1742156350173,2.19345,1889.3,1889.2,3.5941028]
[1742156350668,1.3466,1889.3,1889.2,3.5941028]
[1742156353677,0.00794155,1889.4,1889.3,0.84685]
[1742156353874,0.00794155,1889.4,1889.3,6.06395]
[1742156354980,0.00794155,1889.4,1889.3,6.7195528]
[1742156357182,0.00794155,1889.4,1889.3,10.4285528]
[1742156358369,1.37374155,1889.4,1889.3,10.4285528]
[1742156361188,1.37374155,1889.4,1889.3,10.81765074]
[1742156361482,0.00794155,1889.4,1889.3,10.81765074]
[1742156364884,0.84664,1889.8,1889.7,0.84666]
[1742156365086,2.23907,1889.8,1889.6,0.84668]
[1742156365285,2.0698,1889.8,1889.6,0.84668]
[1742156365487,1.3924,1889.7,1889.6,0.84668]
[1742156365790,1.3924,1889.7,1889.6,2.26088]
[1742156366087,1.3924,1889.7,1889.6,3.67568]
[1742156366284,1.3924,1889.7,1889.6,4.32967571]
[1742156366485,1.3924,1889.7,1889.6,0.65399571]
[1742156366688,2.23907,1889.7,1889.6,0.65399571]
[1742156366987,2.23907,1889.7,1889.5,4.05455]
[1742156367189,1.3803,1889.6,1889.5,4.05455]
[1742156367986,1.3803,1889.6,1889.5,5.40525203]
[1742156369777,0.00794155,1889.8,1889.7,0.84667]
[1742156369985,0.84642,1890.3,1889.8,2.11653]
[1742156370185,2.92742,1890.3,1890.1,0.84648]
[1742156370588,1.3613,1890.2,1890.1,2.19038]
[1742156371190,1.3613,1890.2,1890.1,2.84322759]
[1742156371389,1.3613,1890.2,1890.1,3.21790359]
[1742156371987,0.8463,1890.6,1890.1,2.37142359]
[1742156372190,1.3613,1890.3,1890.2,9.81015]
[1742156372593,1.3613,1890.3,1890.2,10.46299759]
[1742156376890,1.3613,1890.3,1890.2,9.81015]
[1742156377098,1.3613,1890.3,1890.2,9.10515]
[1742156378794,1.3613,1890.3,1890.2,5.39815]
[1742156378998,0.00794155,1890.4,1890.3,0.8464]
[1742156379297,1.3338,1890.5,1890.4,0.84636]
[1742156379597,1.3338,1890.5,1890.4,8.49056]
[1742156380300,1.3338,1890.5,1890.3,0.7045]
[1742156380301,2.18014,1890.5,1890.3,0.84639]
[1742156380798,2.0377,1890.4,1890.3,0.84639]
[1742156381191,2.0377,1890.4,1890.2,8.3487]
[1742156381394,1.3338,1890.3,1890.2,9.19515]
[1742156389012,4.5416,1890.3,1890.1,0.65817657]
[1742156389212,0.84645,1890.2,1890.1,0.65817657]
[1742156389510,2.29385,1890.2,1890.1,0.65817657]
[1742156389716,2.29385,1890.2,1890.1,0.00794155]
[1742156391617,0.84658,1889.9,1889.8,0.65023502]
[1742156392015,0.84663,1889.8,1889.7,4.05445]
[1742156392211,2.26163,1889.8,1889.7,4.05445]
[1742156392912,0.84667,1889.7,1889.6,1.50487657]
[1742156393119,1.415,1889.7,1889.6,1.50487657]
[1742156393319,2.0858,1889.7,1889.6,1.50487657]
[1742156393522,2.0858,1889.7,1889.6,1.88271013]
[1742156393813,1.415,1889.7,1889.6,1.88271013]
[1742156395917,1.415,1889.7,1889.6,3.26831013]
[1742156398418,1.415,1889.7,1889.6,1.88271013]
[1742156398722,1.415,1889.7,1889.6,1.50487657]
[1742156398926,2.0984,1889.7,1889.6,1.50487657]
[1742156399427,2.94507,1889.7,1889.6,0.65817657]
[1742156400428,2.0984,1889.7,1889.6,1.50489657]
[1742156400620,2.0984,1889.7,1889.6,2.85049657]
[1742156401925,2.0984,1889.7,1889.6,3.56159657]
[1742156402624,2.94507,1889.7,1889.6,2.00377657]
[1742156402817,2.0984,1889.7,1889.6,1.50489657]
[1742156403013,2.94507,1889.7,1889.6,0.65817657]
[1742156403419,2.0984,1889.7,1889.6,1.50489657]
[1742156403615,2.0984,1889.7,1889.6,2.88659657]
[1742156403821,2.94507,1889.7,1889.6,0.65817657]
[1742156404620,2.94507,1889.7,1889.0,3.536]
[1742156404621,9.92291,1889.7,1889.2,3.2078]
[1742156404831,0.84684,1889.4,1889.2,4.0547]